fUSD/lending_fUSD_20250606
["ID","MTS","AMOUNT","RATE_DAILY","PERIOD"]
[364636812,1749169879667,-503.0,0.0003104,2]
[364636813,1749169879677,-150.0,0.00031041,2]
[364636814,1749169879686,-150.0,0.00031045,2]
[364636815,1749169879695,-150.0,0.00031053,2]
[364636816,1749169879705,-150.0,0.0003106,2]
[364636817,1749169879719,-301.15,0.00031064,2]
[364636818,1749169879728,-300.35,0.00031064,2]
[364636819,1749169879738,-150.0,0.00031067,7]
[364636820,1749169879748,-500.0,0.00031067,7]
[364636821,1749169879759,-500.0,0.00031067,7]
[364636822,1749169879768,-150.0,0.00031067,7]
[364636823,1749169879778,-500.0,0.00031067,7]
[364636824,1749169879787,-200.0,0.00031067,7]
[364636825,1749169879797,-150.0,0.00031067,7]
[364636826,1749169879807,-500.0,0.00031067,7]
[364636827,1749169879816,-500.0,0.00031067,2]
[364636828,1749169879826,-500.0,0.00031067,2]
[364636829,1749169879835,-500.0,0.00031067,2]
[364636830,1749169879844,-202.51295072,0.00031067,2]
[364636831,1749169879854,-500.0,0.00031067,2]
[364636832,1749169879863,-240.80517119,0.00031067,2]
[364636833,1749169879873,-500.0,0.00031067,2]
[364636834,1749169879883,-503.0,0.00031067,2]
[364636835,1749169879893,-400.0,0.0003107,2]
[364636836,1749169879902,-1267.4601228,0.00031072,24]
[364636837,1749169879913,-150.0,0.00031078,2]
[364636838,1749169879922,-150.0,0.0003108,2]
[364636839,1749169879931,-150.0,0.00031085,2]
[364636840,1749169879941,-150.0,0.00031086,2]
[364636841,1749169879950,-150.0,0.00031087,2]
[364636842,1749169879963,-150.0,0.00031087,2]
[364636843,1749169880141,-150.0,0.00031094,2]
[364636844,1749169880151,-150.0,0.00031095,7]
[364636845,1749169880160,-500.0,0.00031095,7]
[364636846,1749169880169,-500.0,0.00031095,7]
[364636847,1749169880179,-202.1224691,0.00031095,7]
[364636848,1749169880189,-500.0,0.00031095,7]
[364636849,1749169880198,-200.0,0.00031095,7]
[364636850,1749169880208,-500.0,0.00031095,7]
[364636851,1749169880218,-150.0,0.00031095,2]
[364636852,1749169880227,-500.0,0.00031095,2]
[364636853,1749169880237,-500.0,0.00031095,2]
[364636854,1749169880247,-500.0,0.00031095,2]
[364636855,1749169880257,-500.0,0.00031095,2]
[364636856,1749169880267,-503.0,0.00031095,2]
[364636857,1749169880276,-150.0,0.00031098,2]
[364636858,1749169880285,-150.0,0.000311,5]
[364636859,1749169880295,-113582.81134303,0.000311,2]
[364636860,1749169880304,-5562.0,0.000311,5]
[364636861,1749169880313,-150.0,0.00031101,2]
[364636862,1749169880323,-150.0,0.00031104,2]
[364636863,1749169880332,-150.0,0.00031114,2]
[364636864,1749169880343,-150.0,0.00031116,2]
[364636865,1749169880352,-150.0,0.00031118,2]
[364636866,1749169880361,-204.0,0.0003112,2]
[364636867,1749169880370,-210.0,0.0003112,2]
[364636868,1749169880379,-150.0,0.00031121,2]
[364636869,1749169880390,-150.0,0.00031121,2]
[364636870,1749169880399,-250.0,0.00031122,7]
[364636871,1749169880408,-500.0,0.00031122,7]
[364636872,1749169880417,-500.0,0.00031122,7]
[364636873,1749169880427,-500.0,0.00031122,7]
[364636874,1749169880436,-500.0,0.00031122,7]
[364636875,1749169880446,-500.0,0.00031122,2]
[364636876,1749169880457,-500.0,0.00031122,2]
[364636877,1749169880467,-500.0,0.00031122,2]
[364636878,1749169880477,-503.0,0.00031122,2]
[364636879,1749169880486,-12500.0,0.00031123,3]
[364636880,1749169880496,-151.0,0.00031123,7]
[364636881,1749169880505,-151.0,0.00031123,7]
[364636882,1749169880515,-151.0,0.00031123,7]
[364636883,1749169880524,-400.337502,0.00031123,7]
[364636884,1749169880534,-400.337502,0.00031123,7]
[364636885,1749169880544,-150.0,0.00031123,2]
[364636886,1749169880554,-1160.492535,0.00031123,7]
[364636887,1749169880564,-1160.492535,0.00031123,7]
[364636888,1749169880574,-530.006421,0.00031123,7]
[364636889,1749169880584,-530.006421,0.00031123,7]
[364636890,1749169880593,-151.0,0.00031123,7]
[364636891,1749169880603,-151.0,0.00031123,7]
[364636892,1749169880612,-150.0,0.00031125,2]
[364636893,1749169880622,-1000.0,0.0003113,2]
[364636894,1749169880632,-218.35529278,0.00031132,2]
[364636895,1749169880641,-287.19366056,0.00031135,2]
[364636896,1749169880650,-150.0,0.00031142,2]
[364636897,1749169880660,-500.0,0.00031149,7]
[364636898,1749169880670,-330.13530249,0.00031149,7]
[364636899,1749169880681,-571.14,0.00031149,7]
[364636900,1749169880690,-571.14,0.00031149,7]
[364636901,1749169880700,-269.6910341,0.00031149,7]
[364636902,1749169880711,-500.0,0.00031149,7]
[364636903,1749169880721,-500.0,0.00031149,2]
[364636904,1749169880731,-500.0,0.00031149,2]
[364636905,1749169880741,-500.0,0.00031149,2]
[364636906,1749169880750,-503.0,0.00031149,2]
[364636907,1749169880759,-151.0,0.0003115,7]
[364636908,1749169880769,-151.0,0.0003115,7]
[364636909,1749169880778,-151.0,0.0003115,7]
[364636910,1749169880787,-151.0,0.0003115,7]
[364636911,1749169880796,-151.0,0.0003115,7]
[364636912,1749169880806,-165.489704,0.0003115,7]
[364636913,1749169880815,-151.0,0.0003115,7]
[364636914,1749169880825,-151.0,0.0003115,7]
[364636915,1749169880834,-151.0,0.0003115,7]
[364636916,1749169880844,-151.0,0.0003115,7]
[364636917,1749169880853,-151.0,0.0003115,7]
[364636918,1749169880864,-151.0,0.0003115,7]
[364636919,1749169880873,-248.584284,0.0003115,7]
[364636920,1749169880882,-151.0,0.0003115,7]
[364636921,1749169880892,-151.0,0.0003115,7]
[364636922,1749169880901,-151.0,0.0003115,7]
[364636923,1749169880911,-151.0,0.0003115,7]
[364636924,1749169880921,-1423.442674,0.0003115,7]
[364636925,1749169880931,-1288.57938,0.0003115,7]
[364636926,1749169880940,-268.077337,0.0003115,7]
[364636927,1749169880950,-525.54,0.0003115,7]
[364636928,1749169880961,-268.077337,0.0003115,7]
[364636929,1749169880971,-480.0,0.0003115,7]
[364636930,1749169880981,-151.0,0.0003115,7]
[364636931,1749169880990,-151.0,0.0003115,7]
[364636932,1749169880999,-480.0,0.0003115,7]
[364636933,1749169881009,-480.0,0.0003115,7]
[364636934,1749169881018,-151.0,0.0003115,7]
[364636935,1749169881027,-151.0,0.0003115,7]
[364636936,1749169881037,-480.0,0.0003115,7]
[364636937,1749169881046,-480.0,0.0003115,7]
[364636938,1749169881056,-151.0,0.0003115,7]
[364636939,1749169881066,-151.0,0.0003115,7]
[364636940,1749169881075,-151.0,0.0003115,7]
[364636941,1749169881084,-151.0,0.0003115,7]
[364636942,1749169881094,-480.0,0.0003115,7]
[364636943,1749169881103,-151.0,0.0003115,7]
[364636944,1749169881112,-577.19,0.0003115,7]
[364636945,1749169881122,-480.0,0.0003115,7]
[364636946,1749169881131,-480.0,0.0003115,7]
[364636947,1749169881141,-151.0,0.0003115,7]
[364636948,1749169881150,-244.51629054,0.0003115,7]
[364636949,1749169881159,-306.41231707,0.0003115,7]
[364636950,1749169881168,-528.217982,0.0003115,7]
[364636951,1749169881178,-151.0,0.0003115,7]
[364636952,1749169881187,-528.217982,0.0003115,7]
[364636953,1749169881196,-417.594066,0.0003115,7]
[364636954,1749169881206,-480.0,0.0003115,7]
[364636955,1749169881217,-480.0,0.0003115,7]
[364636956,1749169881226,-417.594066,0.0003115,7]
[364636957,1749169881235,-480.0,0.0003115,7]
[364636958,1749169881245,-543.3,0.0003115,7]
[364636959,1749169881255,-164.989549,0.0003115,7]
[364636960,1749169881264,-480.0,0.0003115,7]
[364636961,1749169881274,-560.45,0.0003115,7]
[364636962,1749169881285,-164.989549,0.0003115,7]
[364636963,1749169881294,-480.0,0.0003115,7]
[364636964,1749169881303,-480.0,0.0003115,7]
[364636965,1749169881313,-480.0,0.0003115,7]
[364636966,1749169881322,-480.0,0.0003115,7]
[364636967,1749169881332,-480.0,0.0003115,7]
[364636968,1749169881345,-246.79784565,0.0003115,7]
[364636969,1749169881355,-480.0,0.0003115,7]
[364636970,1749169881364,-624.38,0.0003115,30]
[364636971,1749169881374,-480.0,0.0003115,7]
[364636972,1749169881385,-564.7,0.0003115,7]
[364636973,1749169881394,-668.56,0.0003115,7]
[364636974,1749169881404,-480.0,0.0003115,7]
[364636975,1749169881413,-480.0,0.0003115,7]
[364636976,1749169881425,-480.0,0.0003115,7]
[364636977,1749169881435,-480.0,0.0003115,7]
[364636978,1749169881444,-480.0,0.0003115,7]
[364636979,1749169881454,-521.44,0.0003115,7]
[364636980,1749169881465,-480.0,0.0003115,7]
[364636981,1749169881475,-480.0,0.0003115,7]
[364636982,1749169881485,-1135.23,0.0003115,7]
[364636983,1749169881495,-1566.98,0.0003115,7]
[364636984,1749169881505,-480.0,0.0003115,7]
[364636985,1749169881515,-850.57,0.0003115,7]
[364636986,1749169881525,-222.9,0.0003115,7]
[364636987,1749169881534,-480.0,0.0003115,7]
[364636988,1749169881543,-1000.98,0.0003115,7]
[364636989,1749169881553,-731.2,0.0003115,7]
[364636990,1749169881563,-791.42,0.0003115,7]
[364636991,1749169881572,-647.48,0.0003115,7]
[364636992,1749169881582,-669.94,0.0003115,7]
[364636993,1749169881591,-1235.47,0.0003115,7]
[364636994,1749169881601,-785.34,0.0003115,7]
[364636995,1749169881611,-151.0,0.0003115,7]
[364636996,1749169881621,-519.02,0.0003115,7]
[364636997,1749169881630,-151.0,0.0003115,7]
[364636998,1749169881639,-151.0,0.0003115,7]
[364636999,1749169881649,-1309.06,0.0003115,7]
[364637000,1749169881658,-921.0,0.0003115,7]
[364637001,1749169881668,-1017.54,0.0003115,7]
[364637002,1749169881679,-1318.19,0.0003115,7]
[364637003,1749169881689,-151.0,0.0003115,7]
[364637004,1749169881698,-480.0,0.0003115,7]
[364637005,1749169881708,-642.93,0.0003115,7]
[364637006,1749169881720,-480.0,0.0003115,7]
[364637007,1749169881729,-571.7,0.0003115,7]
[364637008,1749169881739,-151.0,0.0003115,7]
[364637009,1749169881748,-638.63,0.0003115,7]
[364637010,1749169881758,-480.0,0.0003115,7]
[364637011,1749169881767,-648.12,0.0003115,7]
[364637012,1749169881778,-480.0,0.0003115,7]
[364637013,1749169881787,-934.99,0.0003115,7]
[364637014,1749169881797,-480.0,0.0003115,7]
[364637015,1749169881807,-480.0,0.0003115,7]
[364637016,1749169881816,-151.0,0.0003115,7]
[364637017,1749169881825,-646.29,0.0003115,7]
[364637018,1749169881835,-515.87,0.0003115,7]
[364637019,1749169881845,-480.0,0.0003115,7]
[364637020,1749169881854,-480.0,0.0003115,7]
[364637021,1749169881863,-604.81,0.0003115,7]
[364637022,1749169881872,-480.0,0.0003115,7]
[364637023,1749169881882,-480.0,0.0003115,7]
[364637024,1749169881891,-603.88,0.0003115,7]
[364637025,1749169881900,-480.0,0.0003115,7]
[364637026,1749169881909,-977.06,0.0003115,7]
[364637027,1749169881919,-480.0,0.0003115,7]
[364637028,1749169881928,-598.09,0.0003115,7]
[364637029,1749169881938,-542.37,0.0003115,7]
[364637030,1749169881948,-984.46,0.0003115,7]
[364637031,1749169881957,-609.89,0.0003115,7]
[364637032,1749169881970,-480.0,0.0003115,7]
[364637033,1749169881980,-480.0,0.0003115,7]
[364637034,1749169881989,-1197.76,0.0003115,7]
[364637035,1749169881999,-966.148999,0.0003115,7]
[364637036,1749169882009,-480.0,0.0003115,7]
[364637037,1749169882019,-480.0,0.0003115,7]
[364637038,1749169882028,-480.0,0.0003115,7]
[364637039,1749169882038,-966.148999,0.0003115,7]
[364637040,1749169882048,-480.0,0.0003115,7]
[364637041,1749169882058,-633.04,0.0003115,7]
[364637042,1749169882069,-480.0,0.0003115,7]
[364637043,1749169882078,-801.52,0.0003115,7]
[364637044,1749169882087,-480.0,0.0003115,7]
[364637045,1749169882097,-480.0,0.0003115,7]
[364637046,1749169882106,-998.49,0.0003115,7]
[364637047,1749169882116,-480.0,0.0003115,7]
[364637048,1749169882125,-480.0,0.0003115,7]
[364637049,1749169882135,-751.3,0.0003115,7]
[364637050,1749169882145,-480.0,0.0003115,7]
[364637051,1749169882154,-480.0,0.0003115,7]
[364637052,1749169882164,-976.73,0.0003115,7]
[364637053,1749169882174,-480.0,0.0003115,7]
[364637054,1749169882183,-560.65,0.0003115,7]
[364637055,1749169882193,-624.38,0.0003115,7]
[364637056,1749169882202,-480.0,0.0003115,7]
[364637057,1749169882216,-567.73,0.0003115,7]
[364637058,1749169882226,-1477.61,0.0003115,7]
[364637059,1749169882235,-480.0,0.0003115,7]
[364637060,1749169882245,-802.74,0.0003115,7]
[364637061,1749169882254,-480.0,0.0003115,7]
[364637062,1749169882263,-1744.01,0.0003115,7]
[364637063,1749169882273,-763.22,0.0003115,7]
[364637064,1749169882284,-538.96,0.0003115,7]
[364637065,1749169882294,-480.0,0.0003115,7]
[364637066,1749169882303,-480.0,0.0003115,7]
[364637067,1749169882313,-974.45,0.0003115,7]
[364637068,1749169882322,-824.48,0.0003115,7]
[364637069,1749169882332,-484.957407,0.0003115,7]
[364637070,1749169882343,-480.0,0.0003115,7]
[364637071,1749169882354,-480.0,0.0003115,7]
[364637072,1749169882364,-965.87,0.0003115,7]
[364637073,1749169882374,-480.0,0.0003115,7]
[364637074,1749169882385,-643.57,0.0003115,7]
[364637075,1749169882395,-895.07,0.0003115,7]
[364637076,1749169882404,-151.0,0.0003115,7]
[364637077,1749169882414,-1530.67,0.0003115,7]
[364637078,1749169882425,-630.12,0.0003115,7]
[364637079,1749169882435,-1015.68,0.0003115,7]
[364637080,1749169882445,-4473.44,0.0003115,7]
[364637081,1749169882455,-997.24,0.0003115,7]
[364637082,1749169882468,-611.76,0.0003115,7]
[364637083,1749169882479,-714.32,0.0003115,7]
[364637084,1749169882489,-1465.75,0.0003115,7]
[364637085,1749169882498,-792.82,0.0003115,7]
[364637086,1749169882509,-239.187392,0.0003115,7]
[364637087,1749169882519,-151.0,0.0003115,7]
[364637088,1749169882528,-5664.36,0.0003115,7]
[364637089,1749169882539,-505.38,0.0003115,7]
[364637090,1749169882549,-1067.54,0.0003115,7]
[364637091,1749169882558,-1841.39,0.0003115,7]
[364637092,1749169882568,-694.91,0.0003115,7]
[364637093,1749169882578,-198.3719853,0.0003115,7]
[364637094,1749169882588,-634.95,0.0003115,7]
[364637095,1749169882597,-10624.81,0.0003115,7]
[364637096,1749169882607,-301.637384,0.0003115,7]
[364637097,1749169882616,-5122.53,0.0003115,7]
[364637098,1749169882626,-1930.66,0.0003115,7]
[364637099,1749169882635,-480.0,0.0003115,7]
[364637100,1749169882645,-994.09,0.0003115,7]
[364637101,1749169882654,-1762.93,0.0003115,7]
[364637102,1749169882664,-301.637384,0.0003115,7]
[364637103,1749169882673,-3222.49,0.0003115,7]
[364637104,1749169882683,-151.0,0.0003115,7]
[364637105,1749169882693,-678.81,0.0003115,7]
[364637106,1749169882703,-480.0,0.0003115,7]
[364637107,1749169882714,-480.0,0.0003115,7]
[364637108,1749169882723,-841.12,0.0003115,7]
[364637109,1749169882733,-1808.93,0.0003115,7]
[364637110,1749169882742,-480.0,0.0003115,7]
[364637111,1749169882752,-151.0,0.0003115,7]
[364637112,1749169882762,-2980.01,0.0003115,7]
[364637113,1749169882771,-912.41,0.0003115,7]
[364637114,1749169882781,-1568.54,0.0003115,7]
[364637115,1749169882790,-499.22,0.0003115,7]
[364637116,1749169882800,-224.39,0.0003115,7]
[364637117,1749169882810,-838.35,0.0003115,7]
[364637118,1749169882819,-726.16,0.0003115,7]
[364637119,1749169882828,-480.0,0.0003115,7]
[364637120,1749169882838,-252.968101,0.0003115,7]
[364637121,1749169883009,-480.0,0.0003115,7]
[364637122,1749169883020,-150.0,0.0003115,2]
[364637123,1749169883029,-480.0,0.0003115,7]
[364637124,1749169883039,-1969.03,0.0003115,7]
[364637125,1749169883048,-8804.99,0.0003115,7]
[364637126,1749169883058,-2057.51,0.0003115,7]
[364637127,1749169883068,-939.86,0.0003115,7]
[364637128,1749169883079,-482.38,0.0003115,7]
[364637129,1749169883088,-483.57,0.0003115,7]
[364637130,1749169883097,-4422.6,0.0003115,7]
[364637131,1749169883106,-480.0,0.0003115,7]
[364637132,1749169883115,-1211.33,0.0003115,7]
[364637133,1749169883125,-480.0,0.0003115,7]
[364637134,1749169883134,-1514.33,0.0003115,7]
[364637135,1749169883144,-273.813344,0.0003115,7]
[364637136,1749169883153,-3546.61,0.0003115,7]
[364637137,1749169883162,-155.912852,0.0003115,7]
[364637138,1749169883172,-1699.38,0.0003115,7]
[364637139,1749169883181,-695.05,0.0003115,7]
[364637140,1749169883190,-1000.0,0.0003115,7]
[364637141,1749169883200,-273.813344,0.0003115,7]
[364637142,1749169883211,-1292.48,0.0003115,7]
[364637143,1749169883220,-480.0,0.0003115,7]
[364637144,1749169883230,-151.0,0.0003115,7]
[364637145,1749169883239,-1270.03,0.0003115,2]
[364637146,1749169883249,-783.86,0.0003115,7]
[364637147,1749169883258,-1448.57,0.0003115,7]
[364637148,1749169883268,-480.0,0.0003115,7]
[364637149,1749169883277,-1405.14,0.0003115,7]
[364637150,1749169883287,-955.4,0.0003115,7]
[364637151,1749169883296,-643.05,0.0003115,7]
[364637152,1749169883306,-1230.15,0.0003115,7]
[364637153,1749169883315,-1097.14,0.0003115,7]
[364637154,1749169883325,-1755.69,0.0003115,7]
[364637155,1749169883336,-1023.18,0.0003115,7]
[364637156,1749169883348,-151.0,0.0003115,7]
[364637157,1749169883359,-173.555393,0.0003115,7]
[364637158,1749169883369,-220.90819826,0.0003115,7]
[364637159,1749169883379,-1239.18,0.0003115,7]
[364637160,1749169883391,-173.555393,0.0003115,7]
[364637161,1749169883400,-480.0,0.0003115,7]
[364637162,1749169883409,-3590.07,0.0003115,7]
[364637163,1749169883420,-502.7,0.0003115,7]
[364637164,1749169883430,-2047.6,0.0003115,7]
[364637165,1749169883440,-480.0,0.0003115,7]
[364637166,1749169883450,-2664.01,0.0003115,7]
[364637167,1749169883461,-2108.29,0.0003115,7]
[364637168,1749169883470,-1756.48,0.0003115,7]
[364637169,1749169883480,-155.606155,0.0003115,7]
[364637170,1749169883490,-2786.75,0.0003115,7]
[364637171,1749169883500,-480.0,0.0003115,7]
[364637172,1749169883514,-992.87,0.0003115,7]
[364637173,1749169883524,-480.0,0.0003115,7]
[364637174,1749169883534,-3552.57,0.0003115,7]
[364637175,1749169883545,-536.2,0.0003115,7]
[364637176,1749169883555,-480.0,0.0003115,7]
[364637177,1749169883566,-472.01520481,0.0003115,7]
[364637178,1749169883576,-480.0,0.0003115,7]
[364637179,1749169883586,-1966.23,0.0003115,7]
[364637180,1749169883596,-1530.82,0.0003115,7]
[364637181,1749169883606,-4980.283864,0.0003115,7]
[364637182,1749169883616,-5095.06,0.0003115,7]
[364637183,1749169883626,-157.422861,0.0003115,7]
[364637184,1749169883636,-610.68,0.0003115,7]
[364637185,1749169883646,-4980.283864,0.0003115,7]
[364637186,1749169883656,-613.31,0.0003115,7]
[364637187,1749169883666,-1252.98,0.0003115,7]
[364637188,1749169883676,-151.0,0.0003115,7]
[364637189,1749169883686,-151.0,0.0003115,7]
[364637190,1749169883696,-1013.14,0.0003115,7]
[364637191,1749169883706,-1721.74,0.0003115,7]
[364637192,1749169883717,-1598.04,0.0003115,7]
[364637193,1749169883727,-157.422861,0.0003115,7]
[364637194,1749169883736,-927.5,0.0003115,7]
[364637195,1749169883746,-151.0,0.0003115,7]
[364637196,1749169883756,-1149.65,0.0003115,7]
[364637197,1749169883766,-1166.73,0.0003115,7]
[364637198,1749169883776,-480.0,0.0003115,7]
[364637199,1749169883786,-1043.06,0.0003115,7]
[364637200,1749169883796,-405.69,0.0003115,7]
[364637201,1749169883805,-3952.97,0.0003115,7]
[364637202,1749169883814,-667.22,0.0003115,7]
[364637203,1749169883826,-635.73,0.0003115,7]
[364637204,1749169883837,-582.95,0.0003115,7]
[364637205,1749169883847,-1842.83,0.0003115,7]
[364637206,1749169883856,-2151.06,0.0003115,7]
[364637207,1749169883866,-480.0,0.0003115,7]
[364637208,1749169883876,-480.0,0.0003115,7]
[364637209,1749169883885,-5721.92,0.0003115,7]
[364637210,1749169883895,-1757.26,0.0003115,7]
[364637211,1749169883906,-4358.7,0.0003115,7]
[364637212,1749169883916,-1283.13,0.0003115,7]
[364637213,1749169883926,-172.972534,0.0003115,7]
[364637214,1749169883937,-796.57,0.0003115,7]
[364637215,1749169883946,-1954.11,0.0003115,7]
[364637216,1749169883957,-1753.46,0.0003115,7]
[364637217,1749169883968,-1790.89,0.0003115,7]
[364637218,1749169883977,-883.43,0.0003115,7]
[364637219,1749169883987,-480.0,0.0003115,7]
[364637220,1749169883997,-1308.85,0.0003115,7]
[364637221,1749169884007,-151.0,0.0003115,7]
[364637222,1749169884017,-480.0,0.0003115,7]
[364637223,1749169884026,-537.04,0.0003115,7]
[364637224,1749169884036,-480.0,0.0003115,7]
[364637225,1749169884046,-857.15,0.0003115,7]
[364637226,1749169884056,-1050.99,0.0003115,7]
[364637227,1749169884066,-656.07,0.0003115,7]
[364637228,1749169884076,-1471.58,0.0003115,7]
[364637229,1749169884085,-907.68,0.0003115,7]
[364637230,1749169884094,-983.31,0.0003115,7]
[364637231,1749169884104,-2471.56,0.0003115,7]
[364637232,1749169884114,-1842.14,0.0003115,7]
[364637233,1749169884124,-480.0,0.0003115,7]
[364637234,1749169884134,-727.341524,0.0003115,7]
[364637235,1749169884143,-152.071432,0.0003115,7]
[364637236,1749169884153,-480.0,0.0003115,7]
[364637237,1749169884163,-480.0,0.0003115,7]
[364637238,1749169884173,-480.0,0.0003115,7]
[364637239,1749169884183,-1021.3,0.0003115,7]
[364637240,1749169884193,-480.0,0.0003115,7]
[364637241,1749169884203,-2266.2,0.0003115,7]
[364637242,1749169884215,-727.341524,0.0003115,7]
[364637243,1749169884225,-480.0,0.0003115,7]
[364637244,1749169884235,-152.071432,0.0003115,7]
[364637245,1749169884245,-757.74,0.0003115,7]
[364637246,1749169884255,-480.0,0.0003115,7]
[364637247,1749169884265,-5199.96,0.0003115,7]
[364637248,1749169884275,-667.5,0.0003115,7]
[364637249,1749169884285,-721.17,0.0003115,7]
[364637250,1749169884294,-1996.44,0.0003115,7]
[364637251,1749169884304,-1003.44,0.0003115,7]
[364637252,1749169884314,-1106.3,0.0003115,7]
[364637253,1749169884324,-2701.39,0.0003115,7]
[364637254,1749169884334,-664.15,0.0003115,7]
[364637255,1749169884345,-480.0,0.0003115,7]
[364637256,1749169884356,-480.0,0.0003115,7]
[364637257,1749169884365,-1202.9,0.0003115,7]
[364637258,1749169884375,-1543.58,0.0003115,7]
[364637259,1749169884386,-562.27,0.0003115,7]
[364637260,1749169884395,-587.01,0.0003115,7]
[364637261,1749169884405,-480.0,0.0003115,7]
[364637262,1749169884414,-480.0,0.0003115,7]
[364637263,1749169884425,-12056.81,0.0003115,7]
[364637264,1749169884435,-17881.25,0.0003115,7]
[364637265,1749169884444,-725.97,0.0003115,7]
[364637266,1749169884454,-783.68,0.0003115,7]
[364637267,1749169884466,-523.31,0.0003115,7]
[364637268,1749169884476,-178.501279,0.0003115,7]
[364637269,1749169884485,-4166.34,0.0003115,7]
[364637270,1749169884496,-492.59,0.0003115,7]
[364637271,1749169884505,-178.501279,0.0003115,7]
[364637272,1749169884515,-2673.43,0.0003115,7]
[364637273,1749169884524,-480.0,0.0003115,7]
[364637274,1749169884534,-731.1,0.0003115,7]
[364637275,1749169884543,-480.0,0.0003115,7]
[364637276,1749169884554,-10488.24,0.0003115,7]
[364637277,1749169884563,-191.011818,0.0003115,7]
[364637278,1749169884573,-1105.24,0.0003115,7]
[364637279,1749169884583,-2200.46,0.0003115,7]
[364637280,1749169884592,-496.74,0.0003115,7]
[364637281,1749169884602,-894.07,0.0003115,7]
[364637282,1749169884612,-3195.01,0.0003115,7]
[364637283,1749169884622,-858.65,0.0003115,7]
[364637284,1749169884632,-777.87,0.0003115,7]
[364637285,1749169884641,-480.0,0.0003115,7]
[364637286,1749169884651,-480.0,0.0003115,7]
[364637287,1749169884661,-882.75,0.0003115,7]
[364637288,1749169884671,-20765.5,0.0003115,7]
[364637289,1749169884680,-151.0,0.0003115,7]
[364637290,1749169884690,-5143.42,0.0003115,7]
[364637291,1749169884700,-672.27,0.0003115,7]
[364637292,1749169884711,-151.0,0.0003115,7]
[364637293,1749169884722,-480.0,0.0003115,7]
[364637294,1749169884732,-480.0,0.0003115,7]
[364637295,1749169884742,-628.58,0.0003115,7]
[364637296,1749169884751,-480.0,0.0003115,7]
[364637297,1749169884761,-585.38,0.0003115,7]
[364637298,1749169884771,-266.915365,0.0003115,7]
[364637299,1749169884780,-2136.76,0.0003115,7]
[364637300,1749169884790,-151.0,0.0003115,7]
[364637301,1749169884799,-968.97,0.0003115,7]
[364637302,1749169884808,-1010.0,0.0003115,7]
[364637303,1749169884817,-844.65,0.0003115,7]
[364637304,1749169884827,-266.915365,0.0003115,7]
[364637305,1749169884836,-1526.53,0.0003115,7]
[364637306,1749169884845,-2074.53,0.0003115,7]
[364637307,1749169884855,-1391.46,0.0003115,7]
[364637308,1749169884864,-481.36,0.0003115,7]
[364637309,1749169884874,-1144.75,0.0003115,7]
[364637310,1749169884884,-289.64928082,0.0003115,2]
[364637311,1749169884893,-1496.25,0.0003115,7]